[Event "*** Titled Tuesday Blitz"]
[Site "Chess.com"]
[Date "2020.02.04"]
[Round "8"]
[White "Atakishiyev04"]
[Black "AntonSmirnov"]
[Result "1-0"]
[WhiteElo "2806"]
[BlackElo "2908"]
[TimeControl "180+2"]
[EndTime "10:58:25 PST"]
[Termination "Atakishiyev04 won by resignation"]

1. d4 {[%clk 0:03:01.9]} 1... d5 {[%clk 0:03:00.5]} 2. c4 {[%clk 0:03:00]} 2...
c6 {[%clk 0:03:01.4]} 3. Nf3 {[%clk 0:03:00.5]} 3... Nf6 {[%clk 0:03:01.3]} 4.
e3 {[%clk 0:03:01]} 4... Bg4 {[%clk 0:03:01.8]} 5. Nc3 {[%clk 0:03:01.1]} 5...
e6 {[%clk 0:03:03]} 6. Be2 {[%clk 0:03:00.2]} 6... Nbd7 {[%clk 0:03:03.1]} 7.
O-O {[%clk 0:02:56]} 7... Bd6 {[%clk 0:03:04.1]} 8. c5 {[%clk 0:02:52.9]} 8...
Bc7 {[%clk 0:03:05.1]} 9. b4 {[%clk 0:02:54.2]} 9... a6 {[%clk 0:03:03.5]} 10.
a4 {[%clk 0:02:54.6]} 10... O-O {[%clk 0:03:04.5]} 11. h3 {[%clk 0:02:53.9]}
11... Bh5 {[%clk 0:03:05.4]} 12. Qc2 {[%clk 0:02:51.9]} 12... Bg6 {[%clk
0:03:06]} 13. Bd3 {[%clk 0:02:45.4]} 13... e5 {[%clk 0:03:07.4]} 14. Bxg6 {[%clk
0:02:44.3]} 14... fxg6 {[%clk 0:03:05.3]} 15. Bb2 {[%clk 0:02:40.9]} 15... e4
{[%clk 0:03:05.6]} 16. Nd2 {[%clk 0:02:41.8]} 16... Qe7 {[%clk 0:03:01.6]} 17.
b5 {[%clk 0:02:34.7]} 17... Rae8 {[%clk 0:02:57.5]} 18. Rae1 {[%clk 0:02:31.2]}
18... Nh5 {[%clk 0:02:47.1]} 19. Qd1 {[%clk 0:02:25.6]} 19... Rf7 {[%clk
0:02:31.1]} 20. Qe2 {[%clk 0:02:15.2]} 20... axb5 {[%clk 0:02:27.5]} 21. axb5
{[%clk 0:02:16.6]} 21... Ref8 {[%clk 0:02:28.4]} 22. b6 {[%clk 0:02:14.3]} 22...
Bb8 {[%clk 0:02:26.2]} 23. Ra1 {[%clk 0:02:11.9]} 23... Qh4 {[%clk 0:02:09.4]}
24. Qg4 {[%clk 0:02:08.3]} 24... Qe7 {[%clk 0:02:04.9]} 25. Ra5 {[%clk
0:01:47.3]} 25... Rf5 {[%clk 0:02:04.5]} 26. Raa1 {[%clk 0:01:42.5]} 26... Rg5
{[%clk 0:01:45.6]} 27. Qe2 {[%clk 0:01:43]} 27... Qe6 {[%clk 0:01:33]} 28. g4
{[%clk 0:01:35.7]} 28... Rf3 {[%clk 0:00:41.1]} 29. Nxf3 {[%clk 0:01:35.1]}
29... Rxg4+ {[%clk 0:00:42]} 30. Kh1 {[%clk 0:01:36.2]} 30... Rg3 {[%clk
0:00:41.1]} 31. fxg3 {[%clk 0:01:25.4]} 31... Nxg3+ {[%clk 0:00:40.6]} 32. Kg2
{[%clk 0:01:26.6]} 32... Nxe2 {[%clk 0:00:41.6]} 33. Nxe2 {[%clk 0:01:28.5]}
33... exf3+ {[%clk 0:00:42.4]} 34. Rxf3 {[%clk 0:01:30.4]} 34... h6 {[%clk
0:00:39.5]} 35. Ra7 {[%clk 0:01:29]} 35... Bxa7 {[%clk 0:00:18.4]} 36. bxa7
{[%clk 0:01:30.9]} 36... Qe8 {[%clk 0:00:19.5]} 37. Rf1 {[%clk 0:01:25]} 37...
Qa8 {[%clk 0:00:20.3]} 38. Ra1 {[%clk 0:01:25.8]} 38... b6 {[%clk 0:00:21]} 39.
Nf4 {[%clk 0:01:25.3]} 39... Kf7 {[%clk 0:00:20.5]} 40. Nd3 {[%clk 0:01:24.9]}
40... bxc5 {[%clk 0:00:19.6]} 41. dxc5 {[%clk 0:01:24.8]} 41... g5 {[%clk
0:00:16.9]} 42. Ne5+ {[%clk 0:01:18.8]} 42... Ke6 {[%clk 0:00:16.4]} 43. Nxd7
{[%clk 0:01:17.1]} 43... Kxd7 {[%clk 0:00:18.3]} 44. Bxg7 {[%clk 0:01:16.5]}
44... Kc7 {[%clk 0:00:18.9]} 45. Bxh6 {[%clk 0:01:12.8]} 45... Kd7 {[%clk
0:00:19.7]} 46. Bxg5 {[%clk 0:01:12.3]} 46... Ke6 {[%clk 0:00:20.7]} 47. h4
{[%clk 0:01:12.8]} 47... Ke5 {[%clk 0:00:21.3]} 48. Kh1 {[%clk 0:01:09.7]} 48...
Ke4 {[%clk 0:00:21.3]} 49. h5 {[%clk 0:01:06.6]} 49... Kf3 {[%clk 0:00:21.7]}
50. h6 {[%clk 0:01:05.7]} 50... Qc8 {[%clk 0:00:22.3]} 51. Kh2 {[%clk
0:00:58.8]} 51... Qc7+ {[%clk 0:00:22.6]} 52. Bf4 {[%clk 0:00:58.4]} 52... Qd8
{[%clk 0:00:17.3]} 53. Bg3 {[%clk 0:00:54]} 53... Qh8 {[%clk 0:00:15.8]} 54.
Rf1+ {[%clk 0:00:53.2]} 54... Ke2 {[%clk 0:00:16.7]} 55. Kg2 {[%clk 0:00:53.9]}
55... Qa8 {[%clk 0:00:16.8]} 56. Rf7 {[%clk 0:00:52.4]} 56... Qe8 {[%clk
0:00:17.4]} 57. Rf2+ {[%clk 0:00:52.9]} 57... Kxe3 {[%clk 0:00:18.5]} 58. h7
{[%clk 0:00:52]} 58... Qe4+ {[%clk 0:00:19]} 59. Kg1 {[%clk 0:00:50.3]} 59...
Qe8 {[%clk 0:00:17.9]} 60. Ra2 {[%clk 0:00:49.2]} 60... Qg6 {[%clk 0:00:17.9]}
61. Ra3+ {[%clk 0:00:49]} 61... Ke2 {[%clk 0:00:19]} 62. h8=Q {[%clk 0:00:43.6]}
1-0

[Event "*** Titled Tuesday Blitz"]
[Site "Chess.com"]
[Date "2020.02.04"]
[Round "8"]
[White "vovachesss"]
[Black "TheBigBoss04"]
[Result "0-1"]
[WhiteElo "2570"]
[BlackElo "2697"]
[TimeControl "180+2"]
[EndTime "10:58:28 PST"]
[Termination "TheBigBoss04 won by resignation"]

1. e4 {[%clk 0:03:01.9]} 1... g6 {[%clk 0:03:01.4]} 2. d4 {[%clk 0:03:00.8]}
2... Bg7 {[%clk 0:03:03.3]} 3. Nc3 {[%clk 0:03:01.1]} 3... d6 {[%clk 0:03:04.7]}
4. g3 {[%clk 0:02:57.5]} 4... h5 {[%clk 0:03:02.7]} 5. h4 {[%clk 0:02:57.7]}
5... Nc6 {[%clk 0:03:02.9]} 6. Nge2 {[%clk 0:02:58.3]} 6... Bg4 {[%clk
0:03:02.8]} 7. Be3 {[%clk 0:02:59.9]} 7... Bf3 {[%clk 0:03:03.7]} 8. Rg1 {[%clk
0:03:01.1]} 8... e5 {[%clk 0:03:04.8]} 9. Qd2 {[%clk 0:02:59.6]} 9... Nf6 {[%clk
0:03:03.5]} 10. Bg2 {[%clk 0:02:57.9]} 10... Bxg2 {[%clk 0:03:02.7]} 11. Rxg2
{[%clk 0:02:58.4]} 11... exd4 {[%clk 0:03:02]} 12. Nxd4 {[%clk 0:02:59.3]} 12...
Ng4 {[%clk 0:03:02.4]} 13. Nxc6 {[%clk 0:02:51.1]} 13... bxc6 {[%clk 0:03:01.4]}
14. Bd4 {[%clk 0:02:52.4]} 14... Ne5 {[%clk 0:03:00.2]} 15. O-O-O {[%clk
0:02:50.2]} 15... Nf3 {[%clk 0:02:58.3]} 16. Qe3 {[%clk 0:02:34.1]} 16... Bh6
{[%clk 0:02:57]} 17. Bxh8 {[%clk 0:02:12.5]} 17... Bxe3+ {[%clk 0:02:57.9]} 18.
fxe3 {[%clk 0:02:14.4]} 18... Qe7 {[%clk 0:02:58.8]} 19. Rf2 {[%clk 0:02:10.4]}
19... Ne5 {[%clk 0:02:57.7]} 20. Bxe5 {[%clk 0:01:56.5]} 20... Qxe5 {[%clk
0:02:56]} 21. Rdf1 {[%clk 0:01:58.4]} 21... Qe7 {[%clk 0:02:44]} 22. e5 {[%clk
0:01:35.8]} 22... Qxe5 {[%clk 0:02:41.2]} 23. Rxf7 {[%clk 0:01:25.9]} 23...
Qxe3+ {[%clk 0:02:42.2]} 24. Kb1 {[%clk 0:01:27.4]} 24... O-O-O {[%clk
0:02:43.1]} 25. R7f3 {[%clk 0:01:26.1]} 25... Qe5 {[%clk 0:02:43.4]} 26. a3
{[%clk 0:01:22.9]} 26... Kb7 {[%clk 0:02:41.3]} 27. Rf4 {[%clk 0:01:24]} 27...
c5 {[%clk 0:02:36.7]} 28. g4 {[%clk 0:01:23.5]} 28... hxg4 {[%clk 0:02:33.3]}
29. Rxg4 {[%clk 0:01:24.1]} 29... Rh8 {[%clk 0:02:32.1]} 30. Rxg6 {[%clk
0:01:11]} 30... Rxh4 {[%clk 0:02:31.1]} 31. Rg2 {[%clk 0:01:04.1]} 31... Rh2
{[%clk 0:02:25.6]} 32. Rxh2 {[%clk 0:00:59.6]} 32... Qxh2 {[%clk 0:02:26.2]} 33.
Re1 {[%clk 0:00:59.7]} 33... Qg2 {[%clk 0:02:25.6]} 34. Re2 {[%clk 0:00:56.6]}
34... Qh1+ {[%clk 0:02:24.6]} 35. Ka2 {[%clk 0:00:57.1]} 35... d5 {[%clk
0:02:26]} 36. Re5 {[%clk 0:00:53.9]} 36... d4 {[%clk 0:02:25.9]} 37. Na4 {[%clk
0:00:50.8]} 37... c4 {[%clk 0:02:24.5]} 38. Rb5+ {[%clk 0:00:48.7]} 38... Kc8
{[%clk 0:02:19.9]} 39. Rc5 {[%clk 0:00:45.6]} 39... d3 {[%clk 0:02:19.4]} 40.
Rxc4 {[%clk 0:00:33.5]} 40... d2 {[%clk 0:02:17.4]} 41. Nc3 {[%clk 0:00:34.8]}
41... d1=Q {[%clk 0:02:06]} 42. Nxd1 {[%clk 0:00:35.7]} 42... Qxd1 {[%clk
0:02:07.4]} 43. b3 {[%clk 0:00:37.6]} 43... Kb7 {[%clk 0:02:06.7]} 44. Kb2
{[%clk 0:00:38.2]} 44... a5 {[%clk 0:02:07.2]} 45. Ka2 {[%clk 0:00:39.1]} 45...
Qc1 {[%clk 0:02:05]} 46. a4 {[%clk 0:00:30]} 46... Kb6 {[%clk 0:02:05.2]} 47.
Rc3 {[%clk 0:00:31.1]} 47... Qe1 {[%clk 0:02:04]} 48. Rc4 {[%clk 0:00:32.2]}
48... Qe2 {[%clk 0:02:04.1]} 49. Kb2 {[%clk 0:00:31.6]} 49... c5 {[%clk
0:01:20.8]} 50. Rh4 {[%clk 0:00:17.3]} 50... Kc6 {[%clk 0:01:13.1]} 51. Rc4
{[%clk 0:00:10.4]} 51... Kd5 {[%clk 0:01:13.4]} 52. Rh4 {[%clk 0:00:06.1]} 52...
Qf2 {[%clk 0:01:12.9]} 53. Rc4 {[%clk 0:00:06.5]} 53... Qf6+ {[%clk 0:01:09.5]}
54. Ka2 {[%clk 0:00:06.5]} 54... Qf1 {[%clk 0:01:08.2]} 55. Rc3 {[%clk
0:00:02.2]} 55... Kd4 {[%clk 0:01:04.6]} 56. Rc4+ {[%clk 0:00:03.7]} 56... Qxc4
{[%clk 0:01:04.9]} 57. bxc4 {[%clk 0:00:05.6]} 57... Kc3 {[%clk 0:01:02.7]} 58.
Kb1 {[%clk 0:00:04]} 58... Kxc4 {[%clk 0:01:03.1]} 59. Kb2 {[%clk 0:00:04.9]}
59... Kb4 {[%clk 0:01:04.7]} 60. c3+ {[%clk 0:00:05.9]} 60... Kxa4 {[%clk
0:01:05.3]} 61. Ka2 {[%clk 0:00:07.5]} 61... Kb5 {[%clk 0:01:04.7]} 62. Kb3
{[%clk 0:00:06.8]} 62... a4+ {[%clk 0:01:05.9]} 63. Ka3 {[%clk 0:00:02.7]} 63...
Kc4 {[%clk 0:01:07.2]} 64. Kb2 {[%clk 0:00:03.5]} 64... a3+ {[%clk 0:01:07.3]}
65. Kxa3 {[%clk 0:00:04.5]} 65... Kxc3 {[%clk 0:01:08.2]} 0-1

[Event "*** Titled Tuesday Blitz"]
[Site "Chess.com"]
[Date "2020.02.04"]
[Round "8"]
[White "Aygehovit1992"]
[Black "kesarev"]
[Result "1-0"]
[WhiteElo "2655"]
[BlackElo "2471"]
[TimeControl "180+2"]
[EndTime "10:58:28 PST"]
[Termination "Aygehovit1992 won by resignation"]

1. e4 {[%clk 0:03:01.9]} 1... g6 {[%clk 0:02:59.2]} 2. d4 {[%clk 0:03:01.3]}
2... Bg7 {[%clk 0:03:00.5]} 3. Nc3 {[%clk 0:03:02.1]} 3... c5 {[%clk 0:03:01.7]}
4. d5 {[%clk 0:02:57.4]} 4... d6 {[%clk 0:02:59.7]} 5. Nf3 {[%clk 0:02:55.8]}
5... Bg4 {[%clk 0:03:00]} 6. h3 {[%clk 0:02:56.1]} 6... Bxf3 {[%clk 0:03:01.1]}
7. Qxf3 {[%clk 0:02:57.2]} 7... Nd7 {[%clk 0:03:01.2]} 8. Bb5 {[%clk 0:02:53.1]}
8... Nf6 {[%clk 0:03:00.7]} 9. g4 {[%clk 0:02:51.9]} 9... a6 {[%clk 0:03:00.4]}
10. Be2 {[%clk 0:02:51.6]} 10... b5 {[%clk 0:02:46.7]} 11. g5 {[%clk 0:02:51.9]}
11... Ne5 {[%clk 0:02:27.6]} 12. Qg2 {[%clk 0:02:52.6]} 12... Nfd7 {[%clk
0:02:27.2]} 13. f4 {[%clk 0:02:53.6]} 13... Nc4 {[%clk 0:02:28.4]} 14. h4 {[%clk
0:02:52.8]} 14... Qa5 {[%clk 0:02:27.8]} 15. Rh3 {[%clk 0:02:51.1]} 15... h5
{[%clk 0:02:17.7]} 16. Bxc4 {[%clk 0:02:51.1]} 16... bxc4 {[%clk 0:02:18.5]} 17.
Bd2 {[%clk 0:02:52]} 17... Qb6 {[%clk 0:02:04.1]} 18. Rb1 {[%clk 0:02:48.7]}
18... Qc7 {[%clk 0:01:59.1]} 19. Qe2 {[%clk 0:02:46.3]} 19... Nb6 {[%clk
0:01:59.7]} 20. f5 {[%clk 0:02:47.5]} 20... Be5 {[%clk 0:01:58.5]} 21. Nd1
{[%clk 0:02:43.2]} 21... gxf5 {[%clk 0:01:55.1]} 22. exf5 {[%clk 0:02:41.3]}
22... Nxd5 {[%clk 0:01:55.6]} 23. Qxc4 {[%clk 0:02:42]} 23... Qc6 {[%clk
0:01:49.1]} 24. Qe4 {[%clk 0:02:33.3]} 24... Kd7 {[%clk 0:01:14.2]} 25. c4
{[%clk 0:02:26.1]} 25... Nb4 {[%clk 0:01:15.2]} 26. Qxc6+ {[%clk 0:02:27]} 26...
Nxc6 {[%clk 0:01:16.9]} 27. Bc3 {[%clk 0:02:18.8]} 27... Bxc3+ {[%clk
0:01:07.8]} 28. Nxc3 {[%clk 0:02:15.3]} 28... Nd4 {[%clk 0:01:09]} 29. Nd5
{[%clk 0:02:09.9]} 29... Rab8 {[%clk 0:01:02.7]} 30. f6 {[%clk 0:02:10.4]} 30...
e6 {[%clk 0:01:02.2]} 31. Nf4 {[%clk 0:02:05.3]} 31... a5 {[%clk 0:00:58.1]} 32.
Kd2 {[%clk 0:01:59.4]} 32... a4 {[%clk 0:00:58.1]} 33. Kc3 {[%clk 0:01:57.3]}
33... Rb7 {[%clk 0:00:47]} 34. Re3 {[%clk 0:01:57.3]} 34... Nf5 {[%clk
0:00:46.7]} 35. Rh3 {[%clk 0:01:57.2]} 35... Rb4 {[%clk 0:00:44.4]} 36. Nd3
{[%clk 0:01:50.5]} 36... Rb6 {[%clk 0:00:42.5]} 37. b4 {[%clk 0:01:51.5]} 37...
axb3 {[%clk 0:00:36.8]} 38. axb3 {[%clk 0:01:52]} 38... e5 {[%clk 0:00:28.4]}
39. b4 {[%clk 0:01:50.2]} 39... cxb4+ {[%clk 0:00:27.8]} 40. Rxb4 {[%clk
0:01:50.1]} 40... Rxb4 {[%clk 0:00:27.3]} 41. Nxb4 {[%clk 0:01:50.7]} 41... Ra8
{[%clk 0:00:27]} 42. Nc2 {[%clk 0:01:32.5]} 42... Ke6 {[%clk 0:00:27.7]} 43. Rh1
{[%clk 0:01:30.2]} 43... Ra6 {[%clk 0:00:22.7]} 44. Kb3 {[%clk 0:01:25.4]} 44...
e4 {[%clk 0:00:21.6]} 45. Nb4 {[%clk 0:01:22.8]} 45... Ra8 {[%clk 0:00:21]} 46.
Nd5 {[%clk 0:01:22.6]} 46... Ke5 {[%clk 0:00:21.5]} 47. Kb4 {[%clk 0:01:08.7]}
47... e3 {[%clk 0:00:19.8]} 48. Kb5 {[%clk 0:01:06]} 48... Rb8+ {[%clk
0:00:16.5]} 49. Kc6 {[%clk 0:01:06.3]} 49... Nd4+ {[%clk 0:00:17.4]} 50. Kd7
{[%clk 0:01:06.6]} 50... Rb7+ {[%clk 0:00:16.8]} 51. Ke8 {[%clk 0:01:06.6]}
51... e2 {[%clk 0:00:15.2]} 52. Ne7 {[%clk 0:01:02.7]} 52... Ke6 {[%clk
0:00:11.4]} 53. Kf8 {[%clk 0:01:03.6]} 53... Nf3 {[%clk 0:00:11.3]} 54. Nc6
{[%clk 0:00:49.2]} 54... Rc7 {[%clk 0:00:10]} 55. Nd8+ {[%clk 0:00:48.7]} 55...
Kd7 {[%clk 0:00:07.4]} 56. Nxf7 {[%clk 0:00:49.5]} 56... e1=Q {[%clk 0:00:08.6]}
57. Rxe1 {[%clk 0:00:50]} 57... Nxe1 {[%clk 0:00:10.5]} 58. g6 {[%clk
0:00:49.3]} 58... Nf3 {[%clk 0:00:08.5]} 59. Ng5 {[%clk 0:00:47.9]} 59... Nxh4
{[%clk 0:00:05.6]} 60. g7 {[%clk 0:00:49]} 60... Rc8+ {[%clk 0:00:06.7]} 61. Kf7
{[%clk 0:00:50.1]} 61... Nf5 {[%clk 0:00:07.1]} 62. Kg6 {[%clk 0:00:51.2]} 62...
Ng3 {[%clk 0:00:05]} 63. f7 {[%clk 0:00:51.2]} 63... h4 {[%clk 0:00:05.7]} 64.
f8=Q {[%clk 0:00:51.9]} 64... h3 {[%clk 0:00:06.8]} 1-0

[Event "*** Titled Tuesday Blitz"]
[Site "Chess.com"]
[Date "2020.02.04"]
[Round "8"]
[White "Zq1"]
[Black "BeanScreen"]
[Result "0-1"]
[WhiteElo "2539"]
[BlackElo "2563"]
[TimeControl "180+2"]
[EndTime "10:58:28 PST"]
[Termination "BeanScreen won by resignation"]

1. d4 {[%clk 0:03:01.9]} 1... d5 {[%clk 0:03:00.3]} 2. c4 {[%clk 0:03:02.9]}
2... dxc4 {[%clk 0:03:02.2]} 3. Nf3 {[%clk 0:03:00.7]} 3... a6 {[%clk
0:03:03.3]} 4. e3 {[%clk 0:02:59.9]} 4... Nf6 {[%clk 0:03:04.8]} 5. Bxc4 {[%clk
0:02:59.8]} 5... e6 {[%clk 0:03:06.6]} 6. Qe2 {[%clk 0:02:57.4]} 6... c5 {[%clk
0:03:07]} 7. O-O {[%clk 0:02:50.4]} 7... Nc6 {[%clk 0:03:07.2]} 8. dxc5 {[%clk
0:02:49.4]} 8... Bxc5 {[%clk 0:03:07.9]} 9. e4 {[%clk 0:02:50.1]} 9... Qc7
{[%clk 0:03:06.9]} 10. Bg5 {[%clk 0:02:27.9]} 10... Ng4 {[%clk 0:03:07.2]} 11.
g3 {[%clk 0:02:27.5]} 11... h5 {[%clk 0:02:32]} 12. Nc3 {[%clk 0:02:23.8]} 12...
h4 {[%clk 0:02:31.4]} 13. Bf4 {[%clk 0:02:23.9]} 13... e5 {[%clk 0:02:02.8]} 14.
Nd5 {[%clk 0:02:21.9]} 14... Qd6 {[%clk 0:02:03.6]} 15. Bd2 {[%clk 0:01:59.9]}
15... Qg6 {[%clk 0:02:00.1]} 16. Ne3 {[%clk 0:01:28.2]} 16... hxg3 {[%clk
0:01:23.1]} 17. fxg3 {[%clk 0:01:27.8]} 17... Qh6 {[%clk 0:00:11]} 18. Bxf7+
{[%clk 0:01:18.3]} 18... Kxf7 {[%clk 0:00:12.1]} 19. Qc4+ {[%clk 0:01:05]} 19...
Ke8 {[%clk 0:00:06.8]} 20. Qxc5 {[%clk 0:01:01]} 20... Nxh2 {[%clk 0:00:07.9]}
21. Nh4 {[%clk 0:00:51]} 21... Nxf1 {[%clk 0:00:09]} 22. Rxf1 {[%clk 0:00:50]}
22... Qg5 {[%clk 0:00:10.1]} 23. Nef5 {[%clk 0:00:45.9]} 23... Qxd2 {[%clk
0:00:09.3]} 24. Nxg7+ {[%clk 0:00:36.4]} 24... Kd8 {[%clk 0:00:08.9]} 25. Qb6+
{[%clk 0:00:34.6]} 25... Ke7 {[%clk 0:00:06.6]} 26. Ng6+ {[%clk 0:00:32.7]}
26... Kd6 {[%clk 0:00:04.1]} 27. Rf6+ {[%clk 0:00:30.8]} 27... Kd7 {[%clk
0:00:05.7]} 28. Rf7+ {[%clk 0:00:30]} 28... Kd6 {[%clk 0:00:07.1]} 29. Rf6+
{[%clk 0:00:23.1]} 29... Kd7 {[%clk 0:00:08.2]} 30. Nxe5+ {[%clk 0:00:22.7]}
30... Ke7 {[%clk 0:00:07.5]} 31. Rf7+ {[%clk 0:00:21]} 31... Kd6 {[%clk
0:00:08]} 32. Qc7+ {[%clk 0:00:22.2]} 32... Kc5 {[%clk 0:00:08.8]} 33. Nf3
{[%clk 0:00:20.9]} 33... Qd1+ {[%clk 0:00:09.5]} 34. Kf2 {[%clk 0:00:21]} 34...
Qc2+ {[%clk 0:00:10.7]} 35. Ke3 {[%clk 0:00:22.1]} 35... Qc1+ {[%clk 0:00:12]}
36. Ke2 {[%clk 0:00:23]} 36... Qc2+ {[%clk 0:00:12.5]} 37. Ke3 {[%clk
0:00:24.2]} 37... Qc1+ {[%clk 0:00:13.6]} 38. Kf2 {[%clk 0:00:24.2]} 38... Qxb2+
{[%clk 0:00:14.5]} 39. Ke3 {[%clk 0:00:25]} 39... Qa3+ {[%clk 0:00:15.4]} 40.
Kf4 {[%clk 0:00:25.5]} 40... Qxa2 {[%clk 0:00:07]} 41. Nf5 {[%clk 0:00:12.7]}
41... Qe6 {[%clk 0:00:04.6]} 42. N3d4 {[%clk 0:00:09.8]} 42... Qe5+ {[%clk
0:00:05.7]} 43. Qxe5+ {[%clk 0:00:10.4]} 43... Nxe5 {[%clk 0:00:07.6]} 44. Kxe5
{[%clk 0:00:11.6]} 44... Bxf5 {[%clk 0:00:09.1]} 45. Nxf5 {[%clk 0:00:09.5]}
45... Rae8+ {[%clk 0:00:10.4]} 46. Kf4 {[%clk 0:00:10.2]} 46... b5 {[%clk
0:00:11.7]} 47. e5 {[%clk 0:00:09.2]} 47... b4 {[%clk 0:00:12.8]} 48. Rc7+
{[%clk 0:00:09.9]} 48... Kb6 {[%clk 0:00:14.3]} 49. Rc4 {[%clk 0:00:10.9]} 49...
a5 {[%clk 0:00:14.4]} 50. Nd6 {[%clk 0:00:11.2]} 50... Ref8+ {[%clk 0:00:15.3]}
51. Ke4 {[%clk 0:00:12]} 51... Rhg8 {[%clk 0:00:15.7]} 52. Kd5 {[%clk
0:00:12.8]} 52... Rxg3 {[%clk 0:00:15.9]} 53. Rc6+ {[%clk 0:00:13.9]} 53... Ka7
{[%clk 0:00:17.2]} 54. Rc7+ {[%clk 0:00:13]} 54... Kb8 {[%clk 0:00:17.9]} 55.
Rc5 {[%clk 0:00:14]} 55... Rd3+ {[%clk 0:00:18.6]} 56. Kc6 {[%clk 0:00:13.6]}
56... Rc3 {[%clk 0:00:19.8]} 57. Nc4 {[%clk 0:00:09.4]} 57... Rxc4 {[%clk
0:00:20.6]} 58. Rxc4 {[%clk 0:00:09.3]} 58... Rc8+ {[%clk 0:00:22]} 0-1

[Event "*** Titled Tuesday Blitz"]
[Site "Chess.com"]
[Date "2020.02.04"]
[Round "8"]
[White "czasnaszachy"]
[Black "HouseOfDurin"]
[Result "1-0"]
[WhiteElo "2297"]
[BlackElo "2074"]
[TimeControl "180+2"]
[EndTime "10:58:30 PST"]
[Termination "czasnaszachy won by resignation"]

1. d4 {[%clk 0:03:01.9]} 1... Nf6 {[%clk 0:03:00.2]} 2. c4 {[%clk 0:03:02.6]}
2... c5 {[%clk 0:03:01.7]} 3. d5 {[%clk 0:03:03]} 3... b5 {[%clk 0:03:03.1]} 4.
cxb5 {[%clk 0:03:02.3]} 4... a6 {[%clk 0:03:04.5]} 5. f3 {[%clk 0:03:03]} 5...
axb5 {[%clk 0:02:58.3]} 6. e4 {[%clk 0:03:03.6]} 6... b4 {[%clk 0:02:58]} 7. e5
{[%clk 0:03:03]} 7... Ng8 {[%clk 0:02:53.4]} 8. d6 {[%clk 0:02:55]} 8... e6
{[%clk 0:02:30]} 9. Be3 {[%clk 0:02:45.7]} 9... b3 {[%clk 0:02:06.6]} 10. Qxb3
{[%clk 0:02:37.7]} 10... f6 {[%clk 0:01:41]} 11. f4 {[%clk 0:02:20.9]} 11...
fxe5 {[%clk 0:01:41.1]} 12. fxe5 {[%clk 0:02:20.5]} 12... Qh4+ {[%clk
0:01:40.4]} 13. Bf2 {[%clk 0:02:08.1]} 13... Qe4+ {[%clk 0:01:17.9]} 14. Be2
{[%clk 0:02:00.4]} 14... Ba6 {[%clk 0:00:52.2]} 15. Nc3 {[%clk 0:01:58.5]} 15...
Qxe5 {[%clk 0:00:52.3]} 16. Nf3 {[%clk 0:01:58.6]} 16... Qxd6 {[%clk 0:00:49.1]}
17. Rd1 {[%clk 0:01:32.7]} 17... Qc7 {[%clk 0:00:39]} 18. Bb5 {[%clk 0:01:22]}
18... Nf6 {[%clk 0:00:37.7]} 19. Qxe6+ {[%clk 0:01:22]} 19... Be7 {[%clk
0:00:28.2]} 20. Qc4 {[%clk 0:00:58.4]} 20... Bxb5 {[%clk 0:00:18.3]} 21. Nxb5
{[%clk 0:00:58.9]} 21... Qa5+ {[%clk 0:00:19]} 22. Rd2 {[%clk 0:00:52.1]} 22...
d5 {[%clk 0:00:19.5]} 23. b4 {[%clk 0:00:35.9]} 23... dxc4 {[%clk 0:00:09.2]}
24. bxa5 {[%clk 0:00:37]} 24... Rxa5 {[%clk 0:00:10.5]} 25. Nc7+ {[%clk
0:00:37.2]} 25... Kf7 {[%clk 0:00:11.6]} 26. Ne5+ {[%clk 0:00:37]} 26... Kf8
{[%clk 0:00:09.3]} 27. Nxc4 {[%clk 0:00:22.2]} 27... Ra7 {[%clk 0:00:08.6]} 28.
Ne6+ {[%clk 0:00:19]} 28... Kf7 {[%clk 0:00:09.3]} 29. Nxc5 {[%clk 0:00:18.6]}
29... Bxc5 {[%clk 0:00:07.6]} 30. Bxc5 {[%clk 0:00:20]} 30... Re8+ {[%clk
0:00:08.6]} 31. Kd1 {[%clk 0:00:18.1]} 31... Rc7 {[%clk 0:00:09.3]} 32. Nd6+
{[%clk 0:00:18.4]} 32... Kg6 {[%clk 0:00:06.3]} 33. Nxe8 {[%clk 0:00:19]} 33...
Rxc5 {[%clk 0:00:07.6]} 34. Nxf6 {[%clk 0:00:19.6]} 34... gxf6 {[%clk
0:00:09.3]} 35. Re1 {[%clk 0:00:19.6]} 35... Na6 {[%clk 0:00:07.7]} 36. Re4
{[%clk 0:00:20.1]} 36... Ra5 {[%clk 0:00:07]} 37. a4 {[%clk 0:00:20.2]} 37...
Nc7 {[%clk 0:00:07.6]} 38. Rc4 {[%clk 0:00:20.5]} 38... Nd5 {[%clk 0:00:08.2]}
39. Ke1 {[%clk 0:00:16.8]} 39... Ne3 {[%clk 0:00:06.5]} 40. Rb4 {[%clk
0:00:17.2]} 40... Nd5 {[%clk 0:00:04.1]} 41. Rb5 {[%clk 0:00:16.9]} 41... Rxa4
{[%clk 0:00:04.8]} 42. Rbxd5 {[%clk 0:00:17.5]} 42... Re4+ {[%clk 0:00:06]} 43.
Kf2 {[%clk 0:00:18.2]} 43... Rf4+ {[%clk 0:00:07.1]} 44. Kg1 {[%clk 0:00:19.1]}
44... Ra4 {[%clk 0:00:07.8]} 45. R5d3 {[%clk 0:00:20.1]} 45... Ra1+ {[%clk
0:00:07.4]} 46. Rd1 {[%clk 0:00:20.1]} 46... Ra5 {[%clk 0:00:09.3]} 47. Kf2
{[%clk 0:00:20.7]} 47... Rf5+ {[%clk 0:00:10]} 48. Rf3 {[%clk 0:00:21.1]} 48...
Rg5 {[%clk 0:00:10.1]} 49. Rd6 {[%clk 0:00:21.5]} 49... Kg7 {[%clk 0:00:10.8]}
50. Rdxf6 {[%clk 0:00:21.6]} 50... Rb5 {[%clk 0:00:10.1]} 51. Rf7+ {[%clk
0:00:22.3]} 51... Kg8 {[%clk 0:00:11.5]} 52. Ra7 {[%clk 0:00:22.2]} 52... h5
{[%clk 0:00:11.2]} 53. h4 {[%clk 0:00:22.1]} 53... Rb2+ {[%clk 0:00:11.6]} 54.
Kg3 {[%clk 0:00:22.9]} 54... Rb6 {[%clk 0:00:12.5]} 55. Rc3 {[%clk 0:00:23.5]}
55... Rg6+ {[%clk 0:00:13.5]} 56. Kh3 {[%clk 0:00:24.5]} 56... Rg7 {[%clk
0:00:13.7]} 57. Rc8+ {[%clk 0:00:24.9]} 57... Kh7 {[%clk 0:00:14.4]} 58. Rxg7+
{[%clk 0:00:25.3]} 58... Kxg7 {[%clk 0:00:16.3]} 59. Rc5 {[%clk 0:00:26.4]}
59... Kg6 {[%clk 0:00:18.2]} 60. Rg5+ {[%clk 0:00:27.3]} 60... Kh6 {[%clk
0:00:20.1]} 61. Kg3 {[%clk 0:00:28.5]} 61... Kh7 {[%clk 0:00:21.5]} 62. Kf4
{[%clk 0:00:29.2]} 62... Kh6 {[%clk 0:00:22.3]} 63. Kf5 {[%clk 0:00:30.3]} 63...
Kh7 {[%clk 0:00:23.8]} 64. Kf6 {[%clk 0:00:31.2]} 64... Kh6 {[%clk 0:00:24.2]}
65. Kf7 {[%clk 0:00:31.8]} 1-0